Cogmind - Beta 10.1 @@@ ROGUE MODE // 2020.09.22 @ 23:25:37 // Winter2019/RPGLIKE Player: DragoX Result: Destroyed by S-10 Pest with Light Assault Rifle Performance ------------- Evolutions (0) 0 Regions Visited (1) 200 Robots Destroyed (21) 105 Value Destroyed (384) 384 Prototype IDs (0) 0 Alien Tech Used (0) 0 Bonus (0) 0 TOTAL SCORE: 689 Bonus ------- None Cogmind --------- Core Integrity 0/600 Matter 261/300 Energy 124/125 System Corruption 0% Temperature Cool (0) Movement Treading (160) Location -10/Materials Parts ------- > --- POWER (1) -------- Light Ion Engine > --- PROPULSION (1) --- Light Treads > --- UTILITY (1) ------ Improved Terrain Scanner > --- WEAPON (1) ------- Light Assault Rifle > --- INVENTORY (0) ---- (None) Peak State ------------ > --- POWER ------------ Light Ion Engine > --- PROPULSION ------- Light Treads > --- UTILITY ---------- Improved Terrain Scanner > --- WEAPON ----------- Medium Laser > --- INVENTORY -------- (None) [Rating: 5] Favorites ----------- Power Light Ion Engine Engine Light Ion Engine Propulsion Light Treads Treads Light Treads Utility Improved Terrain Scanner Device Improved Terrain Scanner Weapon Medium Laser Energy Gun Medium Laser Ballistic Gun Light Assault Rifle Build | -11 -10 ------- Run | Scr Mat Slots Evolved . | . . Power . | . . Propulsion . | . . Utility . | . . Weapon . | . . Parts Attached 5 | 4 1 Power 1 | 1 . Engine 1 | 1 . Core . | . . Reactor . | . . Propulsion 1 | 1 . Treads 1 | 1 . Leg . | . . Wheel . | . . Hover . | . . Flight . | . . Utility 1 | 1 . Device 1 | 1 . Storage . | . . Processor . | . . Hackware . | . . Protection . | . . Artifact . | . . Weapon 2 | 1 1 Energy Gun 1 | 1 . Energy Cannon . | . . Ballistic Gun 1 | . 1 Ballistic Cannon . | . . Launcher . | . . Special Weapon . | . . Impact Weapon . | . . Slashing Weapon . | . . Piercing Weapon . | . . Special Melee Weapon . | . . Unidentified Prototypes . | . . Parts Lost . | . . Power . | . . Propulsion . | . . Utility . | . . Weapon . | . . Highest Loss Streak . | . . Average Slot Usage (%) 100 | . 100 Engine 25 | . 25 Treads 25 | . 25 Device 25 | . 25 Energy Gun 12 | . 12 Ballistic Gun 12 | . 12 Naked Turns . | . . Heaviest Build 6 | 6 6 Greatest Support 20 | 20 20 Greatest Overweight (x) . | . . Average Overweight (x) . | . . Largest Inventory Capacity . | . . Average Capacity . | . . Most Carried . | . . Average Carried . | . . Final Capacity . | . . Final Carried . | . . Class Distribution -------------------- 100% | Mutant Dominant Class ---------------- Mutant | -10/Materials Resources | -11 -10 ----------- Run | Scr Mat Matter Collected 294 | 240 54 Remotely . | . . Salvage Created 605 | 81 524 Parts 51 | 3 48 Haulers Intercepted 1 | . 1 Recyclers Shooed . | . . Parts Field Recycled . | . . Retrieved Matter . | . . Parts Self-Destructed . | . . Prevented . | . . Kills | -11 -10 ------- Run | Scr Mat Combat Hostiles Destroyed 16 | . 16 Guns 16 | . 16 Classes Destroyed 7 | 2 5 Worker 1 | . 1 Tunneler 1 | 1 . Hauler 1 | . 1 Recycler 1 | 1 . Watcher 1 | . 1 Swarmer 8 | . 8 Grunt 8 | . 8 Best Kill Streak 7 | 1 7 Combat Bots Only 6 | . 6 Max Kills in Single Turn 1 | 1 1 Gunslinging . | . . Exploded . | . . Melee . | . . Uniques/NPCs Destroyed . | . . Combat | -11 -10 -------- Run | Scr Mat Damage Taken 831 | . 831 Core 679 | . 679 Absorbed by Shields . | . . Redirected to Core 454 | . 454 Core Remaining (%) 100 | 100 . Volleys Fired 122 | 15 107 Largest 1 | 1 1 Hottest 50 | 50 50 Shots Fired 122 | 15 107 Gun 122 | 15 107 Cannon . | . . Launcher . | . . Special . | . . Kinetic 83 | . 83 Thermal 39 | 15 24 Explosive . | . . Electromagnetic . | . . Robot Hit Streak 11 | 11 10 Robot Miss Streak 5 | 3 5 Penetration Max . | . . Secondary Targets . | . . Shots Hit Robots 82 | 12 70 Core Hits 36 | 3 33 Critical Hits . | . . Critical Kills . | . . Critical Parts Destroyed . | . . Melee Attacks . | . . Impact . | . . Slashing . | . . Piercing . | . . Sneak Attacks . | . . Combat Hostiles . | . . Follow-up Attacks . | . . Damage Inflicted 840 | 163 677 Guns 840 | 163 677 Cannons . | . . Explosions . | . . Melee . | . . Ramming . | . . Kinetic 467 | . 467 Thermal 373 | 163 210 Explosive . | . . Electromagnetic . | . . Impact . | . . Slashing . | . . Piercing . | . . Highest Corruption . | . . Average Corruption . | . . Corruption Purged . | . . Overload Shots . | . . Overflow Damage . | . . Projectiles . | . . Explosions . | . . Melee . | . . Knockbacks . | . . Impact . | . . Kinetic . | . . Secondary . | . . Self-Inflicted Damage . | . . Shots . | . . Rammed . | . . Targets Rammed . | . . Kicked . | . . Crushed . | . . Highest Temperature 170 | 80 170 Average Temperature 50 | 29 60 Received Heat Transfer 240 | . 240 Siege Activations . | . . Robots Corrupted . | . . Combat Hostiles . | . . Parts Fried . | . . Impact Corruptions . | . . Robots Melted . | . . Combat Hostiles . | . . Parts Melted . | . . Heat Transferred 1110 | 481 629 Parts Sabotaged . | . . Parts Stolen . | . . Parts Stripped . | . . Power Chain Reactions . | . . Missiles Intercepted . | . . Alert | -11 -10 ------- Run | Scr Mat Peak Influence 303 | 10 303 Initial 6 | . 6 Average 90 | 3 114 Maximum Alert Level 1 | . 1 Low Security (%) 87 | 100 84 Level 1 12 | . 15 Level 2 . | . . Level 3 . | . . Level 4 . | . . Level 5 . | . . High Security . | . . Max Security . | . . Squads Dispatched 5 | . 5 Investigation 2 | . 2 Extermination . | . . Reinforcement 3 | . 3 Assault . | . . Garrison . | . . Intercept . | . . Construction Impeded . | . . Haulers Reinforced . | . . Stealth | -11 -10 --------- Run | Scr Mat Distress Signals . | . . Communications Jammed . | . . Distress Signals . | . . Times Spotted 24 | . 24 Peak Tracking Total 4 | . 4 Tactical Retreats 2 | . 2 Traps | -11 -10 ------- Run | Scr Mat Traps Triggered 1 | . 1 Indirectly . | . . Trap Hack Attempts . | . . Triggered . | . . Disarmed . | . . Reprogrammed . | . . Reused . | . . Traps Extracted . | . . Installed . | . . Triggered . | . . Machines | -11 -10 ---------- Run | Scr Mat Machines Disabled . | . . Max in Single Turn . | . . Machines Sabotaged . | . . Garrisons Compromised . | . . Overloaded Fab Kills . | . . Fab Network Shutdowns . | . . Hacking | -11 -10 --------- Run | Scr Mat Machines Accessed 1 | . 1 Terminals . | . . Fabricators . | . . Repair Stations . | . . Recycling Units 1 | . 1 Scanalyzers . | . . Garrison Access . | . . Total Hacks 4 | . 4 Successful 2 | . 2 Failed 2 | . 2 Catastrophic . | . . Database Lockouts . | . . Manual 4 | . 4 Terminals . | . . Fabricators . | . . Repair Stations . | . . Recycling Units 4 | . 4 Scanalyzers . | . . Garrison Access . | . . Terminal Hacks . | . . Fabricator Hacks . | . . Repair Station Hacks . | . . Recycling Unit Hacks . | . . Scanalyzer . | . . Garrison Access Hacks . | . . Unauthorized Hacks 2 | . 2 Terminals . | . . Fabricators . | . . Repair Stations . | . . Recycling Units 2 | . 2 Reject 1 | . 1 Recyclers 1 | . 1 Scanalyzers . | . . Garrison Access . | . . Data Cores Recovered . | . . Used . | . . Hacking Detections 1 | . 1 Full Trace Events 1 | . 1 Feedback Events . | . . Feedback Blocked . | . . Robot Schematics Acquired . | . . Robots Built . | . . Matter . | . . Time . | . . Total Robot Build Rating . | . . Part Schematics Acquired . | . . Parts Built . | . . Matter . | . . Time . | . . Total Part Build Rating . | . . Parts Repaired . | . . Time . | . . Parts Recycled . | . . Recycled Matter . | . . Retrieved Matter . | . . Retrieved Components . | . . Parts Scanalyzed . | . . Part Schematics Acquired . | . . Parts Damaged . | . . Bothacking | -11 -10 ------------ Run | Scr Mat Used RIF Installer . | . . Robots Hacked . | . . Non-combat . | . . Combat . | . . Robot Hacks Applied . | . . Relay Couplers Released . | . . Robots Rewired . | . . Allies Hacked . | . . Hacks Repelled . | . . Allies | -11 -10 -------- Run | Scr Mat Total Allies . | . . Largest Group . | . . Highest-Rated Group . | . . Highest-Rated Ally . | . . Total Orders . | . . Ally Attacks . | . . Total Damage . | . . Kills . | . . Allies Corrupted . | . . Allies Melted . | . . Intel | -11 -10 ------- Run | Scr Mat Robot Analysis Total . | . . Derelict Logs Recovered . | . . Drone Launches . | . . Drone Recoveries . | . . Exploration | -11 -10 ------------- Run | Scr Mat Turns Passed 661 | 143 518 Spaces Moved 199 | 71 128 Core 5 | 5 . Treads 194 | 66 128 Legs . | . . Wheels . | . . Hover . | . . Flight . | . . Fastest Speed 50 | 50 160 Average Speed 157 | 152 160 Slowest Speed 160 | 160 160 Overloaded Moves . | . . Propulsion Burnouts . | . . Robots Hopped . | . . Cave-ins Triggered . | . . Exploration Rate (%) 14 | 6 22 Regions Visited 1 Branch Regions . Pre-discovered Areas . | . . Known Exits Taken . | . . Unknown Exits Taken 1 | 1 . Scrap Searched . | . . Spaces Dug . | . . Terrain Destroyed . | . . Melee . | . . Projectile . | . . AOE . | . . Terrain Rammed . | . . Walls Destroyed . | . . Machines Disabled . | . . Actions | -11 -10 --------- Run | Scr Mat Total 441 | 89 352 Wait 111 | . 111 Move 198 | 70 128 Hop . | . . Pick Up . | . . Fast Attach 5 | 4 1 Attach . | . . Detach . | . . Swap . | . . Drop 1 | . 1 Fire 122 | 15 107 Melee . | . . Ram . | . . Kick . | . . Crush . | . . Escape Stasis . | . . Rewire . | . . Trap . | . . Miscellaneous 4 | . 4 Route ------- -11/Scrapyard -10/Materials History --------- Turn | Location | Event 3 | -11/Scrapyard | Discovered new exit (range 15) 144 | -11/Scrapyard | Entered Materials 316 | -10/Materials | Build established: Mutant 526 | -10/Materials | Core integrity fell below 50% 615 | -10/Materials | Reached level 2 640 | -10/Materials | Core integrity fell below 20% 662 | -10/Materials | Destroyed by S-10 Pest with Light Assault Rifle Last Messages --------------- 00621_ R-06 Scavenger collects Aluminum Leg. 00621_ K-01 Serf collects debris. 00624_ R-06 Scavenger collects Heat Sink. 00624_ K-01 Serf collects debris. 00628_ R-06 Scavenger collects Aluminum Leg. 00630_ K-01 Serf collects debris. 00632_ S-10 Pest destroyed. 00632_ R-06 Scavenger collects Aluminum Leg. 00632_ R-06 Scavenger collects Lgt. Ion Engine. 00635_ K-01 Serf collects debris. 00635_ R-06 Scavenger collects Flight Unit. 00638_ K-01 Serf collects debris. 00638_ A-02 Transporter destroyed. 00639_ R-06 Scavenger collects Lgt. Treads. 00640_ K-01 Serf collects debris. 00640_ S-10 Pest destroyed. 00642_ R-06 Scavenger collects Ion Engine. 00642_ K-01 Serf collects debris. 00646_ G-34 Mercenary destroyed. 00648_ K-01 Serf collects debris. Map ----- +----------------------------------------------------+ | ??????????????????????????????#????#?#"" # #? | | ?????????????????????????????#???????#"Y [ *+ #? | | ?????????????????????????????????????#"" %=[# #? | | ????????????????????????????#?#????### == # #? | | ?????????????????????????????????? ??# # #? | | ???????????????????????????? ????????######## #? | | ????????????????????????????? ??????????????# #? | | ??????????????????????????#????#????????????# #? | | ?????????????????????????????? # ######### #? | | ??????????????? ??? ???????????# #? | | ????????????????????????? ?????+ #? | | ?????????????????????????????????##### #? | | ?????????????????????##########?##???# # #? | | ????????????"?????????" ?#??#?#% %# #? | | ???????????????? ?????" ????#?#% %#! #? | | ??????????????????#???r """ "????????##%%%%##%= #? | | ??????????#?"???? ? ? """ "???#????########! #? | | ????????????????????????""" ??????????#?#??## #? | | ???????????????? ? ????r ? ?#?#?#????#?## #? | | ?????????????? ????##?###+##??######??????#?# ## | | ??????????????? ?####### # #?#???????# #? | | ?????????????????# [# # ?T????????#??# #? | | ?????????????????+ %+ # ?????#?######## #? | | ???????????????? # # + ? ??#### #? | | ??????????#??????#" !! # #???? ???## #? | | ??????????????? ?#T !!?# @!#?? ? ?#?# #? | | ?????????????????#" ! #!==########??# ########? | | ????????????## ??# ?? #[%%# ! ##?# ##???#??? | | ???????????#???? ##????#!!*# #??# "##????#? | | ?????????????? ??? ???#=%%# #??# T#???#??? | | ?????????????#???#?????#!==+%= =####? "#??????? | | ??????????? ?????? ?? ?#=%%#* =*+%? ##??#???# | | ????????????????????? ?#s= # [%#### #??#????# | | ??????????????????? ???# g#########?# #???????# | | ?????????????????#?? ?#k%k#? ???"???# ####?#??? | | ???????????? ?? ??????##=%=#?? ?"????# #?#????#? | | ?????????????#?? ???#?## #? ???????# #???????? | | ?????????????#????????? # ?? ????# ##??????? | | ??????????????????? #????? ???# #?????#?# | | ??????????????????? ? = o#??? ?????# #?#?????? | | ???????????????????? [%* #?????##??# #????#??? | | ???????????????#? ? ==% ? ?????? ???????? | | ????????????????#?? ????? ??????? | | ???????????????? ? ??? ?????? | | ?????????????????#+##########??###+######+###????? | | ????????????????? ? ??????? ?????? ?????????????? | | ????????????????????????#??????????????????"?????? | | ???????????????????????????? ???????? ???????????? | | ?????????????????????????????????????????????????? | | ?????????????????????????????????????????????????? | +----------------------------------------------------+ Best States ------------- Heat Dissipation 25 Energy Generation 10 Energy Capacity 125 Matter Stores 300 Matter Capacity 300 Sight Range 16 Robot Scan Range 28 Terrain Scan Range 16 Terrain Scan Density 10 Evasion (%) 40 Recoil Reduction 1 Item Schematics ----------------- None Robot Schematics ------------------ None Fabricated ------------ Nothing Alien Tech Used ----------------- None Achievements -------------- None Challenges ------------ None RPGLIKE | -11 -10 --------- Run | Scr Mat Levels Raised 1 | . 1 XP Earned 5070 | 3000 2070 XP Spent 2975 | 2975 . Upgrades 14 | 14 . Sensor Range 14 | 14 . Protomatter Created 123 | . 123 Integrity Restored 78 | . 78 Core 78 | . 78 Protomatter Decayed 50 | . 50 Game ------ Seed AccelerationDynamicSplitter Manual? 0 Play Time 00:09:57 Cumulative 10.6 hours Start 2020.09.22 @ 00:37:56 End 2020.09.22 @ 23:25:37 Sessions 1 Manual Loads 0 Difficulty Rogue Special Mode Winter2019/RPGLIKE Game No. 18 Rogue 18 Adventurer 0 Explorer 0 Win Type - Total 0 Types 0/0/0/0/0/0/0/0/0 Lore% 10 Gallery% 15 Achievement% 17 Wizard Run 0 Options --------- ASCII 0 Keyboard 0 Movement Mouse Keybinds 0 Fullscreen 1 Font 18/X11 Map View 76x50 Tactical HUD 1 Map Filters NONE Filters NONE Steam 0 RUN: 63131205-f4e0-461d-83e6-d6c3907c385f